fUSD/lending_fUSD_20250214
["ID","MTS","AMOUNT","RATE_DAILY","PERIOD"]
[353079298,1739544680311,-727.18,0.00014109,2]
[353079299,1739544680320,-500.0,0.00014109,2]
[353079300,1739544680330,-1209.19,0.00014109,2]
[353079301,1739544680339,-708.13,0.00014109,2]
[353079302,1739544680349,-934.97,0.00014109,2]
[353079303,1739544680358,-1581.39,0.00014109,2]
[353079304,1739544680368,-779.87,0.00014109,2]
[353079305,1739544680378,-500.0,0.00014109,2]
[353079306,1739544680387,-744.99,0.00014109,2]
[353079307,1739544680396,-726.26,0.00014109,2]
[353079308,1739544680405,-635.98,0.00014109,2]
[353079309,1739544680415,-978.44,0.00014109,2]
[353079310,1739544680424,-1450.61,0.00014109,2]
[353079311,1739544680434,-500.0,0.00014109,2]
[353079312,1739544680443,-200.820466,0.00014109,2]
[353079313,1739544680452,-500.0,0.00014109,2]
[353079314,1739544680462,-200.820466,0.00014109,2]
[353079315,1739544680471,-1548.4,0.00014109,2]
[353079316,1739544680480,-1486.59,0.00014109,2]
[353079317,1739544680490,-200.820466,0.00014109,2]
[353079318,1739544680499,-200.820456,0.00014109,2]
[353079319,1739544680508,-802.99,0.00014109,2]
[353079320,1739544680517,-1107.32,0.00014109,2]
[353079321,1739544680527,-936.07,0.00014109,2]
[353079322,1739544680537,-2614.45,0.00014109,2]
[353079323,1739544680547,-710.72,0.00014109,2]
[353079324,1739544680556,-1150.16,0.00014109,2]
[353079325,1739544680565,-687.93,0.00014109,2]
[353079326,1739544680575,-592.98,0.00014109,2]
[353079327,1739544680584,-1155.9,0.00014109,2]
[353079328,1739544680593,-1976.19,0.00014109,2]
[353079329,1739544680602,-500.0,0.00014109,2]
[353079330,1739544680611,-1070.16,0.00014109,2]
[353079331,1739544680620,-500.0,0.00014109,2]
[353079332,1739544680630,-742.09,0.00014109,2]
[353079333,1739544680639,-500.0,0.00014109,2]
[353079334,1739544680649,-1623.3,0.00014109,2]
[353079335,1739544680658,-997.85,0.00014109,2]
[353079336,1739544680668,-761.38,0.00014109,2]
[353079337,1739544680677,-151.0,0.00014109,2]
[353079338,1739544680687,-208.551612,0.00014109,2]
[353079339,1739544680697,-727.42,0.00014109,2]
[353079340,1739544680706,-1903.26,0.00014109,2]
[353079341,1739544680715,-956.17,0.00014109,2]
[353079342,1739544680724,-1098.4,0.00014109,2]
[353079343,1739544680733,-513.32,0.00014109,2]
[353079344,1739544680743,-1764.08,0.00014109,2]
[353079345,1739544680752,-500.0,0.00014109,2]
[353079346,1739544680762,-2104.25,0.00014109,2]
[353079347,1739544680771,-2002.33,0.00014109,2]
[353079348,1739544680781,-500.0,0.00014109,2]
[353079349,1739544680792,-841.37,0.00014109,2]
[353079350,1739544680802,-964.11,0.00014109,2]
[353079351,1739544680811,-1048.68,0.00014109,2]
[353079352,1739544680820,-553.63,0.00014109,2]
[353079353,1739544680829,-768.42,0.00014109,2]
[353079354,1739544680838,-717.39,0.00014109,2]
[353079355,1739544680847,-500.0,0.00014109,2]
[353079356,1739544680857,-2216.64,0.00014109,2]
[353079357,1739544680866,-1486.6,0.00014109,2]
[353079358,1739544680875,-1430.4,0.00014109,2]
[353079359,1739544680884,-398.9,0.00014109,2]
[353079360,1739544680894,-500.0,0.00014109,2]
[353079361,1739544680903,-586.49,0.00014109,2]
[353079362,1739544680912,-1536.77,0.00014109,2]
[353079363,1739544680922,-1368.84,0.00014109,2]
[353079364,1739544680931,-1844.89,0.00014109,2]
[353079365,1739544680941,-1068.82,0.00014109,2]
[353079366,1739544680951,-500.0,0.00014109,2]
[353079367,1739544680960,-521.69,0.00014109,2]
[353079368,1739544680969,-500.0,0.00014109,2]
[353079369,1739544680979,-626.82,0.00014109,2]
[353079370,1739544680988,-720.9,0.00014109,2]
[353079371,1739544680997,-1187.63,0.00014109,2]
[353079372,1739544681006,-1264.36,0.00014109,2]
[353079373,1739544681015,-500.0,0.00014109,2]
[353079374,1739544681024,-632.35,0.00014109,2]
[353079375,1739544681036,-576.08,0.00014109,2]
[353079376,1739544681045,-1434.56,0.00014109,2]
[353079377,1739544681054,-2178.99,0.00014109,2]
[353079378,1739544681064,-755.49,0.00014109,2]
[353079379,1739544681073,-1654.89,0.00014109,2]
[353079380,1739544681082,-500.0,0.00014109,2]
[353079381,1739544681092,-500.0,0.00014109,2]
[353079382,1739544681104,-3925.97,0.00014109,2]
[353079383,1739544681114,-586.36,0.00014109,2]
[353079384,1739544681123,-520.35,0.00014109,2]
[353079385,1739544681133,-634.11,0.00014109,2]
[353079386,1739544681142,-561.73,0.00014109,2]
[353079387,1739544681152,-747.95,0.00014109,2]
[353079388,1739544681161,-500.5,0.00014109,2]
[353079389,1739544681172,-500.0,0.00014109,2]
[353079390,1739544681181,-807.32,0.00014109,2]
[353079391,1739544681190,-500.0,0.00014109,2]
[353079392,1739544681199,-831.08,0.00014109,2]
[353079393,1739544681209,-1263.6,0.00014109,2]
[353079394,1739544681218,-535.69,0.00014109,2]
[353079395,1739544681227,-1239.88,0.00014109,2]
[353079396,1739544681236,-1758.42,0.00014109,2]
[353079397,1739544681246,-2699.91,0.00014109,2]
[353079398,1739544681255,-874.13,0.00014109,2]
[353079399,1739544681264,-896.36,0.00014109,2]
[353079400,1739544681274,-1946.46,0.00014109,2]
[353079401,1739544681284,-1993.9,0.00014109,2]
[353079402,1739544681293,-1045.73,0.00014109,2]
[353079403,1739544681303,-2126.26,0.00014109,2]
[353079404,1739544681312,-500.0,0.00014109,2]
[353079405,1739544681321,-1742.35,0.00014109,2]
[353079406,1739544681331,-4110.54,0.00014109,2]
[353079407,1739544681340,-2011.27,0.00014109,2]
[353079408,1739544681349,-500.0,0.00014109,2]
[353079409,1739544681358,-2391.78,0.00014109,2]
[353079410,1739544681367,-500.0,0.00014109,2]
[353079411,1739544681377,-609.61,0.00014109,2]
[353079412,1739544681386,-1831.52,0.00014109,2]
[353079413,1739544681395,-500.0,0.00014109,2]
[353079414,1739544681404,-500.0,0.00014109,2]
[353079415,1739544681414,-2646.27,0.00014109,2]
[353079416,1739544681423,-1174.04,0.00014109,2]
[353079417,1739544681432,-3164.91,0.00014109,2]
[353079418,1739544681441,-884.25,0.00014109,2]
[353079419,1739544681450,-1085.57,0.00014109,2]
[353079420,1739544681459,-1315.32,0.00014109,2]
[353079421,1739544681469,-500.0,0.00014109,2]
[353079422,1739544681478,-1305.11,0.00014109,2]
[353079423,1739544681488,-1534.02,0.00014109,2]
[353079424,1739544681498,-804.3,0.00014109,2]
[353079425,1739544681508,-3065.35,0.00014109,2]
[353079426,1739544681518,-942.83,0.00014109,2]
[353079427,1739544681528,-500.0,0.00014109,2]
[353079428,1739544681540,-2292.76,0.00014109,2]
[353079429,1739544681549,-598.52,0.00014109,2]
[353079430,1739544681559,-1739.66,0.00014109,2]
[353079431,1739544681569,-3051.27,0.00014109,2]
[353079432,1739544681579,-591.11915581,0.00014109,2]
[353079433,1739544681589,-1938.22,0.00014109,2]
[353079434,1739544681599,-1919.75,0.00014109,2]
[353079435,1739544681609,-2644.4,0.00014109,2]
[353079436,1739544681619,-500.0,0.00014109,2]
[353079437,1739544681628,-527.01,0.00014109,2]
[353079438,1739544681639,-500.0,0.00014109,2]
[353079439,1739544681648,-3022.44,0.00014109,2]
[353079440,1739544681658,-500.0,0.00014109,2]
[353079441,1739544681668,-2150.61,0.00014109,2]
[353079442,1739544681677,-1103.11,0.00014109,2]
[353079443,1739544681687,-2670.78,0.00014109,2]
[353079444,1739544681696,-852.03,0.00014109,2]
[353079445,1739544681706,-500.0,0.00014109,2]
[353079446,1739544681716,-534.43,0.00014109,2]
[353079447,1739544681726,-3644.59,0.00014109,2]
[353079448,1739544681736,-1448.15,0.00014109,2]
[353079449,1739544681746,-3104.88,0.00014109,2]
[353079450,1739544681756,-1834.3,0.00014109,2]
[353079451,1739544681766,-500.0,0.00014109,2]
[353079452,1739544681776,-826.96,0.00014109,2]
[353079453,1739544681787,-1560.34,0.00014109,2]
[353079454,1739544681797,-500.0,0.00014109,2]
[353079455,1739544681807,-1308.88,0.00014109,2]
[353079456,1739544681816,-3528.69,0.00014109,2]
[353079457,1739544681826,-1061.33,0.00014109,2]
[353079458,1739544681836,-2015.42,0.00014109,2]
[353079459,1739544681847,-5617.67,0.00014109,2]
[353079460,1739544681858,-756.69,0.00014109,2]
[353079461,1739544681868,-1702.01,0.00014109,2]
[353079462,1739544681878,-500.0,0.00014109,2]
[353079463,1739544681887,-500.0,0.00014109,2]
[353079464,1739544681896,-701.91,0.00014109,2]
[353079465,1739544681906,-3158.22,0.00014109,2]
[353079466,1739544681915,-1786.48,0.00014109,2]
[353079467,1739544681925,-487.2048268,0.00014109,2]
[353079468,1739544681934,-3903.71,0.00014109,2]
[353079469,1739544681945,-500.0,0.00014109,2]
[353079470,1739544681955,-1832.52,0.00014109,2]
[353079471,1739544681966,-848.31,0.00014109,2]
[353079472,1739544681977,-3315.95,0.00014109,2]
[353079473,1739544681987,-500.0,0.00014109,2]
[353079474,1739544681997,-2725.27,0.00014109,2]
[353079475,1739544682007,-500.0,0.00014109,2]
[353079476,1739544682017,-2031.81,0.00014109,2]
[353079477,1739544682027,-4599.98,0.00014109,2]
[353079478,1739544682041,-2890.39,0.00014109,2]
[353079479,1739544682050,-500.0,0.00014109,2]
[353079480,1739544682060,-703.01,0.00014109,2]
[353079481,1739544682069,-1874.26,0.00014109,2]
[353079482,1739544682079,-3262.91,0.00014109,2]
[353079483,1739544682089,-2314.45,0.00014109,2]
[353079484,1739544682103,-1772.25,0.00014109,2]
[353079485,1739544682113,-603.08,0.00014109,2]
[353079486,1739544682122,-9777.12,0.00014109,2]
[353079487,1739544682132,-500.0,0.00014109,2]
[353079488,1739544682143,-2126.44,0.00014109,2]
[353079489,1739544682152,-500.0,0.00014109,2]
[353079490,1739544682161,-5018.81,0.00014109,2]
[353079491,1739544682171,-742.14,0.00014109,2]
[353079492,1739544682181,-500.0,0.00014109,2]
[353079493,1739544682191,-1707.91,0.00014109,2]
[353079494,1739544682201,-4887.29,0.00014109,2]
[353079495,1739544682211,-1348.91,0.00014109,2]
[353079496,1739544682221,-2091.28,0.00014109,2]
[353079497,1739544682231,-3940.98,0.00014109,2]
[353079498,1739544682241,-806.99,0.00014109,2]
[353079499,1739544682251,-212.711082,0.00014109,2]
[353079500,1739544682262,-212.711082,0.00014109,2]
[353079501,1739544682272,-2219.75,0.00014109,2]
[353079502,1739544682282,-212.711082,0.00014109,2]
[353079503,1739544682297,-212.711075,0.00014109,2]
[353079504,1739544682306,-9856.61,0.00014109,2]
[353079505,1739544682316,-3791.9,0.00014109,2]
[353079506,1739544682326,-1688.79,0.00014109,2]
[353079507,1739544682336,-1160.16,0.00014109,2]
[353079508,1739544682345,-1010.37,0.00014109,2]
[353079509,1739544682355,-2871.72,0.00014109,2]
[353079510,1739544682366,-555.99,0.00014109,2]
[353079511,1739544682376,-500.0,0.00014109,2]
[353079512,1739544682386,-3497.49,0.00014109,2]
[353079513,1739544682396,-3867.62,0.00014109,2]
[353079514,1739544682406,-4324.25,0.00014109,2]
[353079515,1739544682417,-500.0,0.00014109,2]
[353079516,1739544682427,-500.0,0.00014109,2]
[353079517,1739544682437,-503.82,0.00014109,2]
[353079518,1739544682447,-500.0,0.00014109,2]
[353079519,1739544682458,-500.0,0.00014109,2]
[353079520,1739544682468,-1311.88,0.00014109,2]
[353079521,1739544682479,-635.55,0.00014109,2]
[353079522,1739544682489,-3120.27,0.00014109,2]
[353079523,1739544682499,-3050.97,0.00014109,2]
[353079524,1739544682508,-2478.28,0.00014109,2]
[353079525,1739544682518,-3878.71,0.00014109,2]
[353079526,1739544682529,-2905.87,0.00014109,2]
[353079527,1739544682543,-3113.23,0.00014109,2]
[353079528,1739544682717,-9308.41,0.00014109,2]
[353079529,1739544682727,-2064.17,0.00014109,2]
[353079530,1739544682737,-1168.26,0.00014109,2]
[353079531,1739544682748,-974.13,0.00014109,2]
[353079532,1739544682758,-500.0,0.00014109,2]
[353079533,1739544682768,-2987.68,0.00014109,2]
[353079534,1739544682778,-599.03,0.00014109,2]
[353079535,1739544682790,-2495.74,0.00014109,2]
[353079536,1739544682800,-500.0,0.00014109,2]
[353079537,1739544682810,-3753.97,0.00014109,2]
[353079538,1739544682820,-661.86,0.00014109,2]
[353079539,1739544682831,-500.0,0.00014109,2]
[353079540,1739544682840,-150.0,0.00014109,2]
[353079541,1739544682850,-2852.23,0.00014109,2]
[353079542,1739544682859,-2282.79,0.00014109,2]
[353079543,1739544682869,-659.95,0.00014109,2]
[353079544,1739544682879,-500.0,0.00014109,2]
[353079545,1739544682890,-2097.8,0.00014109,2]
[353079546,1739544682900,-657.14,0.00014109,2]
[353079547,1739544682910,-1146.32,0.00014109,2]
[353079548,1739544682920,-5107.22,0.00014109,2]
[353079549,1739544682930,-877.64,0.00014109,2]
[353079550,1739544682939,-4773.03,0.00014109,2]
[353079551,1739544682949,-3084.9,0.00014109,2]
[353079552,1739544682959,-500.0,0.00014109,2]
[353079553,1739544682969,-500.0,0.00014109,2]
[353079554,1739544682978,-829.21,0.00014109,2]
[353079555,1739544682988,-500.0,0.00014109,2]
[353079556,1739544682997,-4382.38,0.00014109,2]
[353079557,1739544683007,-500.0,0.00014109,2]
[353079558,1739544683016,-500.0,0.00014109,2]
[353079559,1739544683026,-500.0,0.00014109,2]
[353079560,1739544683035,-3816.98,0.00014109,2]
[353079561,1739544683045,-1329.9,0.00014109,2]
[353079562,1739544683054,-779.2,0.00014109,2]
[353079563,1739544683064,-500.0,0.00014109,2]
[353079564,1739544683073,-3531.24,0.00014109,2]
[353079565,1739544683082,-3267.0,0.00014109,2]
[353079566,1739544683092,-1017.37,0.00014109,2]
[353079567,1739544683105,-1241.61,0.00014109,2]
[353079568,1739544683114,-500.0,0.00014109,2]
[353079569,1739544683124,-1563.0,0.00014109,2]
[353079570,1739544683133,-500.0,0.00014109,2]
[353079571,1739544683145,-681.69,0.00014109,2]
[353079572,1739544683154,-500.0,0.00014109,2]
[353079573,1739544683164,-1317.51,0.00014109,2]
[353079574,1739544683175,-617.61,0.00014109,2]
[353079575,1739544683184,-542.26,0.00014109,2]
[353079576,1739544683194,-3593.84,0.00014109,2]
[353079577,1739544683204,-500.0,0.00014109,2]
[353079578,1739544683213,-4983.75,0.00014109,2]
[353079579,1739544683222,-3036.12,0.00014109,2]
[353079580,1739544683231,-542.86,0.00014109,2]
[353079581,1739544683241,-2461.67,0.00014109,2]
[353079582,1739544683250,-520.9,0.00014109,2]
[353079583,1739544683260,-500.0,0.00014109,2]
[353079584,1739544683270,-3383.44,0.00014109,2]
[353079585,1739544683279,-662.81,0.00014109,2]
[353079586,1739544683290,-1911.36,0.00014109,2]
[353079587,1739544683299,-500.0,0.00014109,2]
[353079588,1739544683309,-3689.77,0.00014109,2]
[353079589,1739544683319,-2009.32,0.00014109,2]
[353079590,1739544683328,-970.34,0.00014109,2]
[353079591,1739544683337,-5827.67,0.00014109,2]
[353079592,1739544683347,-500.0,0.00014109,2]
[353079593,1739544683356,-3320.84,0.00014109,2]
[353079594,1739544683366,-4696.51,0.00014109,2]
[353079595,1739544683376,-2598.35,0.00014109,2]
[353079596,1739544683385,-500.0,0.00014109,2]
[353079597,1739544683395,-500.0,0.00014109,2]
[353079598,1739544683405,-500.0,0.00014109,2]
[353079599,1739544683415,-2259.73,0.00014109,2]
[353079600,1739544683426,-500.0,0.00014109,2]
[353079601,1739544683435,-4477.39,0.00014109,2]
[353079602,1739544683445,-1589.29,0.00014109,2]
[353079603,1739544683455,-1657.4,0.00014109,2]
[353079604,1739544683464,-2233.64,0.00014109,2]
[353079605,1739544683474,-500.0,0.00014109,2]
[353079606,1739544683483,-1417.16,0.00014109,2]
[353079607,1739544683493,-653.7,0.00014109,2]
[353079608,1739544683503,-500.0,0.00014109,2]
[353079609,1739544683514,-896.69,0.00014109,2]
[353079610,1739544683523,-3209.23,0.00014109,2]
[353079611,1739544683533,-500.0,0.00014109,2]
[353079612,1739544683544,-1823.66,0.00014109,2]
[353079613,1739544683554,-517.09,0.00014109,2]
[353079614,1739544683563,-2492.01,0.00014109,2]
[353079615,1739544683572,-1632.35,0.00014109,2]
[353079616,1739544683582,-500.0,0.00014109,2]
[353079617,1739544683591,-2703.17,0.00014109,2]
[353079618,1739544683601,-1185.65,0.00014109,2]
[353079619,1739544683611,-500.0,0.00014109,2]
[353079620,1739544683620,-500.0,0.00014109,2]
[353079621,1739544683630,-500.0,0.00014109,2]
[353079622,1739544683639,-4133.86,0.00014109,2]
[353079623,1739544683649,-500.0,0.00014109,2]
[353079624,1739544683658,-500.0,0.00014109,2]
[353079625,1739544683667,-151.0,0.00014109,2]
[353079626,1739544683676,-151.0,0.00014109,2]
[353079627,1739544683686,-3609.04,0.00014109,2]
[353079628,1739544683696,-500.0,0.00014109,2]
[353079629,1739544683706,-3754.44,0.00014109,2]
[353079630,1739544683715,-2296.67,0.00014109,2]
[353079631,1739544683725,-151.0,0.00014109,2]
[353079632,1739544683735,-3027.31,0.00014109,2]
[353079633,1739544683744,-151.0,0.00014109,2]
[353079634,1739544683753,-850.36,0.00014109,2]
[353079635,1739544683763,-1599.65,0.00014109,2]
[353079636,1739544683772,-647.71,0.00014109,2]
[353079637,1739544683781,-4105.41,0.00014109,2]
[353079638,1739544683792,-742.16,0.00014109,2]
[353079639,1739544683801,-566.89,0.00014109,2]
[353079640,1739544683811,-3914.44,0.00014109,2]
[353079641,1739544683820,-1273.0,0.00014113,2]
[353079642,1739544683831,-209.0,0.00014113,2]
[353079643,1739544683840,-558.278,0.00014113,2]
[353079644,1739544683851,-3915.0,0.00014113,2]
[353079645,1739544683861,-150.0,0.00014113,2]
[353079646,1739544683871,-1111.722,0.00014113,2]
[353079647,1739544683880,-3135.9,0.00014126,2]
[353079648,1739544683890,-153.00408274,0.00014136,2]
[353079649,1739544683900,-500.0,0.00014136,2]
[353079650,1739544683909,-1563.0,0.00014136,2]
[353079651,1739544683918,-500.0,0.00014164,2]
[353079652,1739544683928,-1563.0,0.00014164,2]
[353079653,1739544683938,-500.0,0.00014173,2]
[353079654,1739544683947,-500.0,0.00014173,2]
[353079655,1739544683957,-358.28627625,0.00014173,2]
[353079656,1739544683967,-517.73641205,0.00014173,2]
[353079657,1739544683977,-324.4825419,0.00014173,2]
[353079658,1739544683987,-1911.281941,0.00014191,2]
[353079659,1739544683996,-1337.301732,0.00014191,2]
[353079660,1739544684006,-659.14,0.00014191,2]
[353079661,1739544684015,-709.35,0.00014191,2]
[353079662,1739544684025,-500.0,0.00014191,2]
[353079663,1739544684036,-631.86,0.00014191,2]
[353079664,1739544684045,-500.0,0.00014191,2]
[353079665,1739544684055,-500.0,0.00014191,2]
[353079666,1739544684064,-718.88,0.00014191,2]
[353079667,1739544684074,-500.0,0.00014191,2]
[353079668,1739544684083,-594.18,0.00014191,2]
[353079669,1739544684094,-500.0,0.00014191,2]
[353079670,1739544684105,-621.55,0.00014191,2]
[353079671,1739544684114,-545.09196459,0.00014191,2]
[353079672,1739544684123,-500.0,0.00014191,2]
[353079673,1739544684133,-500.0,0.00014191,2]
[353079674,1739544684143,-500.0,0.00014191,2]
[353079675,1739544684153,-500.0,0.00014191,2]
[353079676,1739544684162,-742.42,0.00014191,2]
[353079677,1739544684171,-814.3,0.00014191,2]
[353079678,1739544684182,-500.0,0.00014191,2]
[353079679,1739544684192,-500.0,0.00014191,2]
[353079680,1739544684201,-539.6,0.00014191,2]
[353079681,1739544684211,-667.62,0.00014191,2]
[353079682,1739544684220,-500.0,0.00014191,2]
[353079683,1739544684230,-500.0,0.00014191,2]
[353079684,1739544684239,-500.0,0.00014191,2]
[353079685,1739544684249,-524.12,0.00014191,2]
[353079686,1739544684258,-503.78,0.00014191,2]
[353079687,1739544684268,-760.17,0.00014191,2]
[353079688,1739544684277,-1130.54,0.00014191,2]
[353079689,1739544684286,-901.3,0.00014191,2]
[353079690,1739544684296,-500.0,0.00014191,2]
[353079691,1739544684305,-500.0,0.00014191,2]
[353079692,1739544684315,-195.5288472,0.00014191,2]
[353079693,1739544684324,-500.0,0.00014191,2]
[353079694,1739544684333,-607.24,0.00014191,2]
[353079695,1739544684343,-609.68,0.00014191,2]
[353079696,1739544684352,-673.47,0.00014191,2]
[353079697,1739544684361,-500.0,0.00014191,2]
[353079698,1739544684370,-500.0,0.00014191,2]
[353079699,1739544684379,-619.31,0.00014191,2]
[353079700,1739544684388,-458.23481998,0.00014191,2]
[353079701,1739544684397,-500.0,0.00014191,2]
[353079702,1739544684406,-500.0,0.00014191,2]
[353079703,1739544684416,-717.98,0.00014191,2]
[353079704,1739544684424,-920.52,0.00014191,2]
[353079705,1739544684433,-1053.05,0.00014191,2]
[353079706,1739544684443,-579.27,0.00014191,2]
[353079707,1739544684452,-655.19,0.00014191,2]
[353079708,1739544684461,-551.39,0.00014191,2]
[353079709,1739544684470,-500.0,0.00014191,2]
[353079710,1739544684479,-500.0,0.00014191,2]
[353079711,1739544684489,-916.51,0.00014191,2]
[353079712,1739544684498,-500.0,0.00014191,2]
[353079713,1739544684507,-690.09,0.00014191,2]
[353079714,1739544684516,-850.89,0.00014191,2]
[353079715,1739544684525,-500.0,0.00014191,2]
[353079716,1739544684535,-622.05,0.00014191,2]
[353079717,1739544684545,-500.0,0.00014191,2]
[353079718,1739544684554,-845.24,0.00014191,2]
[353079719,1739544684563,-2399.9,0.00014191,2]
[353079720,1739544684572,-500.0,0.00014191,2]
[353079721,1739544684581,-882.97,0.00014191,2]
[353079722,1739544684590,-500.0,0.00014191,2]
[353079723,1739544684599,-500.0,0.00014191,2]
[353079724,1739544684609,-500.0,0.00014191,2]
[353079725,1739544684618,-500.0,0.00014191,2]
[353079726,1739544684627,-500.0,0.00014191,2]
[353079727,1739544684636,-1071.14,0.00014191,2]
[353079728,1739544684645,-500.0,0.00014191,2]
[353079729,1739544684655,-520.64,0.00014191,2]
[353079730,1739544684664,-500.0,0.00014191,2]
[353079731,1739544684673,-569.33,0.00014191,2]
[353079732,1739544684682,-500.0,0.00014191,2]
[353079733,1739544684691,-500.0,0.00014191,2]
[353079734,1739544684700,-1565.53,0.00014191,2]
[353079735,1739544684710,-1214.8,0.00014191,2]
[353079736,1739544684719,-608.54,0.00014191,2]
[353079737,1739544684727,-1087.72,0.00014191,2]
[353079738,1739544684737,-870.49,0.00014191,2]
[353079739,1739544684746,-858.99,0.00014191,2]
[353079740,1739544684755,-500.0,0.00014191,2]
[353079741,1739544684764,-843.1,0.00014191,2]
[353079742,1739544684774,-1573.74,0.00014191,2]
[353079743,1739544684783,-1220.82,0.00014191,2]
[353079744,1739544684793,-1854.13,0.00014191,2]
[353079745,1739544684802,-651.62,0.00014191,2]
[353079746,1739544684811,-500.0,0.00014191,2]
[353079747,1739544684821,-1294.49,0.00014191,2]
[353079748,1739544684830,-500.0,0.00014191,2]
[353079749,1739544684840,-975.09,0.00014191,2]
[353079750,1739544684849,-601.37,0.00014191,2]
[353079751,1739544684858,-500.0,0.00014191,2]
[353079752,1739544684868,-802.24,0.00014191,2]
[353079753,1739544684877,-1276.04,0.00014191,2]
[353079754,1739544684886,-855.93,0.00014191,2]
[353079755,1739544684896,-953.5,0.00014191,2]
[353079756,1739544684905,-1669.73,0.00014191,2]
[353079757,1739544684914,-500.0,0.00014191,2]
[353079758,1739544684923,-500.0,0.00014191,2]
[353079759,1739544684932,-738.15,0.00014191,2]
[353079760,1739544684941,-1316.02,0.00014191,2]
[353079761,1739544684951,-500.0,0.00014191,2]
[353079762,1739544684960,-799.32,0.00014191,2]
[353079763,1739544684970,-1136.8,0.00014191,2]
[353079764,1739544684980,-826.16,0.00014191,2]
[353079765,1739544684989,-511.86,0.00014191,2]
[353079766,1739544684997,-1440.13,0.00014191,2]
[353079767,1739544685006,-737.56,0.00014191,2]
[353079768,1739544685015,-510.22,0.00014191,2]
[353079769,1739544685024,-500.0,0.00014191,2]
[353079770,1739544685033,-500.0,0.00014191,2]
[353079771,1739544685044,-864.12,0.00014191,2]
[353079772,1739544685053,-500.0,0.00014191,2]
[353079773,1739544685063,-931.04,0.00014191,2]
[353079774,1739544685072,-500.0,0.00014191,2]
[353079775,1739544685081,-500.0,0.00014191,2]
[353079776,1739544685091,-1342.89,0.00014191,2]
[353079777,1739544685103,-1262.7,0.00014191,2]
[353079778,1739544685112,-871.99,0.00014191,2]
[353079779,1739544685120,-701.41,0.00014191,2]
[353079780,1739544685129,-917.64,0.00014191,2]
[353079781,1739544685140,-598.31,0.00014191,2]
[353079782,1739544685149,-1594.36,0.00014191,2]
[353079783,1739544685158,-500.0,0.00014191,2]
[353079784,1739544685167,-727.18,0.00014191,2]
[353079785,1739544685176,-500.0,0.00014191,2]
[353079786,1739544685185,-1209.19,0.00014191,2]
[353079787,1739544685194,-708.13,0.00014191,2]
[353079788,1739544685203,-934.97,0.00014191,2]
[353079789,1739544685211,-1581.39,0.00014191,2]
[353079790,1739544685220,-779.87,0.00014191,2]
[353079791,1739544685229,-500.0,0.00014191,2]
[353079792,1739544685238,-744.99,0.00014191,2]
[353079793,1739544685247,-726.26,0.00014191,2]
[353079794,1739544685257,-635.98,0.00014191,2]
[353079795,1739544685266,-978.44,0.00014191,2]
[353079796,1739544685275,-1450.61,0.00014191,2]
[353079797,1739544685284,-500.0,0.00014191,2]